Workbook

Sheet 4.12 PowerSupplExp
A10: Power Supply Expense
A11: Determination of Commodity
C13: Last Actual kWh's | F13: non GA mod | G13: GA mod | H13: Total | J13: RPP | K13: non-RPP | L13: RPP
A14: Customer Class Name | C14: Last Actual kWh's | F14: non-RPP | K14: % | L14: %
A15: Residential | C15: 12775802 | G15: 52082 | H15: =SUM(F15:G15) -> 52082 | J15: =C15-(F15+G15) -> 12723720 | K15: =+H15/C15 -> 0.004076612959 | L15: =+J15/C15 -> 0.995923387 | M15: =H15+J15 -> 12775802
A16: General Service < 50 kW | C16: 4702580 | G16: 194708 | H16: =SUM(F16:G16) -> 194708 | J16: 4507872 | K16: 0.04140450561 | L16: 0.9585954944 | M16: =H16+J16 -> 4702580
A17: General Service > 50 to 4999 kW | C17: 6797046 | G17: 6797046 | H17: =SUM(F17:G17) -> 6797046 | J17: =C17-(F17+G17) -> 0 | K17: 1 | L17: 0 | M17: 6797046
A18: Unmetered Scattered Load | C18: 2892 | H18: 0 | J18: 2892 | K18: 0 | L18: 1 | M18: 2892
A19: Sentinel Lighting | C19: 20629 | H19: =SUM(F19:G19) -> 0 | J19: =C19-(F19+G19) -> 20629 | K19: 0 | L19: 1 | M19: 20629
A20: Street Lighting | C20: 274259 | H20: 0 | J20: 274259 | K20: 0 | L20: 1 | M20: 274259
A21: other | C21: 0 | H21: 0 | J21: 0
C22: 0 | J22: =C22-F22 -> 0
C23: 0 | J23: =C23-F23 -> 0
A24: TOTAL | C24: =SUM(C15:D23) -> 24573208 | F24: =SUM(F15:F23) -> 0 | G24: =SUM(G15:G23) -> 7043836 | H24: =SUM(H15:H23) -> 7043836 | J24: =SUM(J15:J23) -> 17529372 | M24: =SUM(M15:M23) -> 24573208
A25: % | C25: =$C$24/$C$24 -> 1 | F25: =$F$24/$C$24 -> 0 | G25: =$G$24/$C$24 -> 0.2866469856 | J25: =$J$24/$C$24 -> 0.7133530144
A27: Forecast Price | F27: GA modifiler | G27: 41.49
A29: HOEP ($/MWh) | F29: 20.68 | G29: 20.68
A30: Global Adjustment ($/MWh) | F30: 102.22 | G30: =F30-G27 -> 60.73
A31: Adjustments | F31: 1 | G31: 1
A32: TOTAL ($/MWh) | F32: =SUM(F29:F31) -> 123.9 | G32: =SUM(G29:G31) -> 82.41 | J32: 82
A33: $/kWh | F33: =F32/1000 -> 0.1239 | G33: =G32/1000 -> 0.08241 | J33: =J32/1000 -> 0.082
A34: % | F34: =F25 -> 0 | G34: =G25 -> 0.2866469856 | J34: =J25 -> 0.7133530144
A35: WEIGHTED AVERAGE PRICE | C35: =SUM(F35:J35) -> 0.08211752526 | F35: =F33*F34 -> 0 | G35: =G33*G34 -> 0.02362257808 | J35: =J33*J34 -> 0.05849494718
A37: Electricity Projections
A38: (volumes for the bridge and test year are automatically loss adjusted)
E39: ='[3]0.1 LDC Info'!$E$23 -> 2018 | H39: ='[3]0.1 LDC Info'!$E$25 -> 2019
A40: Customer | C40: Revenue | D40: Expense
A41: Class Name | C41: USA # | D41: USA # | E41: Volume | F41: rate ($/kWh): | G41: Amount | H41: Volume | I41: rate ($/kWh): | J41: Amount
A42: =A15 -> Residential | B42: kWh | C42: 4006 | D42: 4705 | E42: =CHOOSE(MATCH(B42,{0,"kWh","kW"},0),1,'[3]3.11 LoadForecast'!$I43*'[3]3.11 LoadForecast'!B87,'[3]3.11 LoadForecast'!$I$3) -> 14171745.74 | F42: =$C$35 -> 0.08211752526 | G42: =E42*F42 -> 1163748.689 | H42: =CHOOSE(MATCH(B42,{0,"kWh","kW"},0),1,'[3]3.11 LoadForecast'!$J43*'[3]3.11 LoadForecast'!C87,'[3]3.11 LoadForecast'!$J73) -> 14147726.04 | I42: =$C$35 -> 0.08211752526 | J42: =H42*I42 -> 1161776.25
A43: General Service < 50 kW | B43: kWh | C43: 4010 | D43: 4705 | E43: =CHOOSE(MATCH(B43,{0,"kWh","kW"},0),1,'[3]3.11 LoadForecast'!$I44*'[3]3.11 LoadForecast'!B88,'[3]3.11 LoadForecast'!$I$3) -> 4921868.048 | F43: 0.08211752526 | G43: 404171.6238 | H43: =CHOOSE(MATCH(B43,{0,"kWh","kW"},0),1,'[3]3.11 LoadForecast'!$J44*'[3]3.11 LoadForecast'!C88,'[3]3.11 LoadForecast'!$J74) -> 4991913.065 | I43: 0.08211752526 | J43: 409923.5473
A44: General Service > 50 to 4999 kW | B44: kWh | C44: 4035 | D44: 4705 | E44: =CHOOSE(MATCH(B44,{0,"kWh","kW"},0),1,'[3]3.11 LoadForecast'!$I45*'[3]3.11 LoadForecast'!B89,'[3]3.11 LoadForecast'!$I$3) -> 7221084.692 | F44: 0.08211752526 | G44: 592977.6046 | H44: =CHOOSE(MATCH(B44,{0,"kWh","kW"},0),1,'[3]3.11 LoadForecast'!$J45*'[3]3.11 LoadForecast'!C89,'[3]3.11 LoadForecast'!$J75) -> 7323850.755 | I44: 0.08211752526 | J44: 601416.4994
A45: Unmetered Scattered Load | B45: kWh | C45: 4010 | D45: 4705 | E45: =CHOOSE(MATCH(B45,{0,"kWh","kW"},0),1,'[3]3.11 LoadForecast'!$I46*'[3]3.11 LoadForecast'!B90,'[3]3.11 LoadForecast'!$I$3) -> 3052.506 | F45: 0.08211752526 | G45: 250.6642386 | H45: =CHOOSE(MATCH(B45,{0,"kWh","kW"},0),1,'[3]3.11 LoadForecast'!$J46*'[3]3.11 LoadForecast'!C90,'[3]3.11 LoadForecast'!$J76) -> 3095.9474 | I45: 0.08211752526 | J45: 254.2315388
A46: Sentinel Lighting | B46: kWh | C46: 4025 | D46: 4705 | E46: =CHOOSE(MATCH(B46,{0,"kWh","kW"},0),1,'[3]3.11 LoadForecast'!$I47*'[3]3.11 LoadForecast'!B91,'[3]3.11 LoadForecast'!$I$3) -> 21438.2605 | F46: 0.08211752526 | G46: 1760.456898 | H46: =CHOOSE(MATCH(B46,{0,"kWh","kW"},0),1,'[3]3.11 LoadForecast'!$J47*'[3]3.11 LoadForecast'!C91,'[3]3.11 LoadForecast'!$J77) -> 21743.35672 | I46: 0.08211752526 | J46: 1785.510645
A47: Street Lighting | B47: kWh | C47: 4025 | D47: 4705 | E47: =CHOOSE(MATCH(B47,{0,"kWh","kW"},0),1,'[3]3.11 LoadForecast'!$I48*'[3]3.11 LoadForecast'!B92,'[3]3.11 LoadForecast'!$I$3) -> 299727.3796 | F47: 0.08211752526 | G47: 24612.87067 | H47: =CHOOSE(MATCH(B47,{0,"kWh","kW"},0),1,'[3]3.11 LoadForecast'!$J48*'[3]3.11 LoadForecast'!C92,'[3]3.11 LoadForecast'!$J78) -> 303992.9165 | I47: 0.08211752526 | J47: 24963.146
A48: other | B48: kWh | C48: 4025 | D48: 4705 | E48: =CHOOSE(MATCH(B48,{0,"kWh","kW"},0),1,'[3]3.11 LoadForecast'!$I49*'[3]3.11 LoadForecast'!B93,'[3]3.11 LoadForecast'!$I$3) -> 0 | F48: 0.08211752526 | G48: 0 | H48: =CHOOSE(MATCH(B48,{0,"kWh","kW"},0),1,'[3]3.11 LoadForecast'!$J49*'[3]3.11 LoadForecast'!C93,'[3]3.11 LoadForecast'!$J79) -> 0 | I48: 0.08211752526 | J48: 0
A49: 0 | B49: kWh | C49: 4025 | D49: 4705 | E49: =CHOOSE(MATCH(B49,{0,"kWh","kW"},0),1,'[3]3.11 LoadForecast'!$I50*'[3]3.11 LoadForecast'!B94,'[3]3.11 LoadForecast'!$I$3) -> 0 | F49: 0.08211752526 | G49: 0 | H49: =CHOOSE(MATCH(B49,{0,"kWh","kW"},0),1,'[3]3.11 LoadForecast'!$J50*'[3]3.11 LoadForecast'!C94,'[3]3.11 LoadForecast'!$J80) -> 0 | I49: 0.08211752526 | J49: 0
A50: 0 | B50: kWh | C50: 4025 | D50: 4705 | E50: =CHOOSE(MATCH(B50,{0,"kWh","kW"},0),1,'[3]3.11 LoadForecast'!$I51*'[3]3.11 LoadForecast'!B95,'[3]3.11 LoadForecast'!$I$3) -> 0 | F50: 0.08211752526 | G50: 0 | H50: =CHOOSE(MATCH(B50,{0,"kWh","kW"},0),1,'[3]3.11 LoadForecast'!$J51*'[3]3.11 LoadForecast'!C95,'[3]3.11 LoadForecast'!$J81) -> 0 | I50: 0.08211752526 | J50: 0
A51: TOTAL | E51: =SUM(E42:E50) -> 26638916.63 | G51: =SUM(G42:G46) -> 2162909.038 | H51: =SUM(H42:H50) -> 26792322.08 | J51: =SUM(J42:J50) -> 2200119.185
A53: Transmission - Network
A54: (volumes for the bridge and test year are automatically loss adjusted)
E55: ='[3]0.1 LDC Info'!$E$23 -> 2018 | H55: ='[3]0.1 LDC Info'!$E$25 -> 2019
A56: Customer | C56: Revenue | D56: Expense
A57: Class Name | C57: USA # | D57: USA # | E57: Volume | F57: Rate | G57: Amount | H57: Volume | I57: Rate | J57: Amount
A58: =A15 -> Residential | B58: ='[3]0.2 Customer Classes'!$D$13 -> kWh | C58: 4066 | D58: 4714 | E58: =CHOOSE(MATCH(B58,{0,"kWh","kW"},0),1,'[3]3.11 LoadForecast'!$I43*'[3]3.11 LoadForecast'!B87,'[3]3.11 LoadForecast'!$I73) -> 14171745.74 | F58: ='[11]9. RTSR Rates to Forecast'!D17 -> 0.0068 | G58: =E58*F58 -> 96367.87103 | H58: =CHOOSE(MATCH(B58,{0,"kWh","kW"},0),1,'[3]3.11 LoadForecast'!$J43*'[3]3.11 LoadForecast'!C87,'[3]3.11 LoadForecast'!$J73) -> 14147726.04 | I58: 0.006806965191 | J58: =H58*I58 -> 96303.07867
A59: General Service < 50 kW | B59: ='[3]0.2 Customer Classes'!$D$14 -> kWh | C59: 4066 | D59: 4714 | E59: =CHOOSE(MATCH(B59,{0,"kWh","kW"},0),1,'[3]3.11 LoadForecast'!$I44*'[3]3.11 LoadForecast'!B88,'[3]3.11 LoadForecast'!$I74) -> 4921868.048 | F59: ='[11]9. RTSR Rates to Forecast'!D18 -> 0.006 | G59: 29531.20829 | H59: =CHOOSE(MATCH(B59,{0,"kWh","kW"},0),1,'[3]3.11 LoadForecast'!$J44*'[3]3.11 LoadForecast'!C88,'[3]3.11 LoadForecast'!$J74) -> 4991913.065 | I59: 0.00600614481 | J59: 29982.15275
A60: General Service > 50 to 4999 kW | B60: ='[3]0.2 Customer Classes'!$D$15 -> kW | C60: 4066 | D60: 4714 | E60: =CHOOSE(MATCH(B60,{0,"kWh","kW"},0),1,'[3]3.11 LoadForecast'!$I45*'[3]3.11 LoadForecast'!B89,'[3]3.11 LoadForecast'!$I75) -> 18152.24344 | F60: ='[11]9. RTSR Rates to Forecast'!D19 -> 2.5062 | G60: 45493.15251 | H60: =CHOOSE(MATCH(B60,{0,"kWh","kW"},0),1,'[3]3.11 LoadForecast'!$J45*'[3]3.11 LoadForecast'!C89,'[3]3.11 LoadForecast'!$J75) -> 17969.70589 | I60: 2.508766675 | J60: 45081.7993
A61: Unmetered Scattered Load | B61: ='[3]0.2 Customer Classes'!$D$16 -> kWh | C61: 4066 | D61: 4714 | E61: =CHOOSE(MATCH(B61,{0,"kWh","kW"},0),1,'[3]3.11 LoadForecast'!$I46*'[3]3.11 LoadForecast'!B90,'[3]3.11 LoadForecast'!$I76) -> 3052.506 | F61: ='[11]9. RTSR Rates to Forecast'!D20 -> 0.006 | G61: 18.315036 | H61: =CHOOSE(MATCH(B61,{0,"kWh","kW"},0),1,'[3]3.11 LoadForecast'!$J46*'[3]3.11 LoadForecast'!C90,'[3]3.11 LoadForecast'!$J76) -> 3095.9474 | I61: 0.006007020216 | J61: 18.59741862
A62: Sentinel Lighting | B62: ='[3]0.2 Customer Classes'!$D$17 -> kW | C62: 4066 | D62: 4714 | E62: =CHOOSE(MATCH(B62,{0,"kWh","kW"},0),1,'[3]3.11 LoadForecast'!$I47*'[3]3.11 LoadForecast'!B91,'[3]3.11 LoadForecast'!$I77) -> 61 | F62: ='[11]9. RTSR Rates to Forecast'!D21 -> 1.8998 | G62: 115.8878 | H62: =CHOOSE(MATCH(B62,{0,"kWh","kW"},0),1,'[3]3.11 LoadForecast'!$J47*'[3]3.11 LoadForecast'!C91,'[3]3.11 LoadForecast'!$J77) -> 61 | I62: 1.901713065 | J62: 116.0044969
A63: Street Lighting | B63: ='[3]0.2 Customer Classes'!$D$18 -> kW | C63: 4066 | D63: 4714 | E63: =CHOOSE(MATCH(B63,{0,"kWh","kW"},0),1,'[3]3.11 LoadForecast'!$I48*'[3]3.11 LoadForecast'!B92,'[3]3.11 LoadForecast'!$I78) -> 774 | F63: ='[11]9. RTSR Rates to Forecast'!D22 -> 1.8902 | G63: 1463.0148 | H63: =CHOOSE(MATCH(B63,{0,"kWh","kW"},0),1,'[3]3.11 LoadForecast'!$J48*'[3]3.11 LoadForecast'!C92,'[3]3.11 LoadForecast'!$J78) -> 773.7 | I63: 1.892134362 | J63: 1463.944356
A64: other | B64: ='[3]0.2 Customer Classes'!$D$19 -> 0 | C64: 4066 | D64: 4714 | E64: =CHOOSE(MATCH(B64,{0,"kWh","kW"},0),1,'[3]3.11 LoadForecast'!$I49*'[3]3.11 LoadForecast'!B93,'[3]3.11 LoadForecast'!$I79) -> 1 | F64: 0 | G64: 0 | H64: =CHOOSE(MATCH(B64,{0,"kWh","kW"},0),1,'[3]3.11 LoadForecast'!$J49*'[3]3.11 LoadForecast'!C93,'[3]3.11 LoadForecast'!$J79) -> 1 | I64: 0 | J64: 0
A65: 0 | B65: ='[3]0.2 Customer Classes'!$D$20 -> 0 | C65: 4066 | D65: 4714 | E65: =CHOOSE(MATCH(B65,{0,"kWh","kW"},0),1,'[3]3.11 LoadForecast'!$I50*'[3]3.11 LoadForecast'!B94,'[3]3.11 LoadForecast'!$I80) -> 1 | F65: 0 | G65: 0 | H65: =CHOOSE(MATCH(B65,{0,"kWh","kW"},0),1,'[3]3.11 LoadForecast'!$J50*'[3]3.11 LoadForecast'!C94,'[3]3.11 LoadForecast'!$J80) -> 1 | I65: 0 | J65: 0
A66: 0 | B66: ='[3]0.2 Customer Classes'!$D$21 -> 0 | C66: 4066 | D66: 4714 | E66: =CHOOSE(MATCH(B66,{0,"kWh","kW"},0),1,'[3]3.11 LoadForecast'!$I51*'[3]3.11 LoadForecast'!B95,'[3]3.11 LoadForecast'!$I81) -> 1 | F66: 0 | G66: 0 | H66: =CHOOSE(MATCH(B66,{0,"kWh","kW"},0),1,'[3]3.11 LoadForecast'!$J51*'[3]3.11 LoadForecast'!C95,'[3]3.11 LoadForecast'!$J81) -> 1 | I66: 0 | J66: 0
A67: TOTAL | E67: =SUM(E58:E66) -> 19115656.54 | G67: =SUM(G58:G66) -> 172989.4495 | H67: =SUM(H58:H66) -> 19161542.46 | J67: =SUM(J58:J66) -> 172965.577
A69: Transmission - Connection
A70: (volumes for the bridge and test year are automatically loss adjusted)
E71: ='[3]0.1 LDC Info'!$E$23 -> 2018 | H71: ='[3]0.1 LDC Info'!$E$25 -> 2019
A72: Customer | C72: Revenue | D72: Expense
A73: Class Name | C73: USA # | D73: USA # | E73: Volume | F73: Rate | G73: Amount | H73: Volume | I73: Rate | J73: Amount
A74: =A15 -> Residential | B74: ='[3]0.2 Customer Classes'!$D$13 -> kWh | C74: 4068 | D74: 4716 | E74: =CHOOSE(MATCH(B74,{0,"kWh","kW"},0),1,'[3]3.11 LoadForecast'!$I43*'[3]3.11 LoadForecast'!B87,'[3]3.11 LoadForecast'!$I73) -> 14171745.74 | F74: ='[11]9. RTSR Rates to Forecast'!D27 -> 0.0016 | G74: =E74*F74 -> 22674.79318 | H74: =CHOOSE(MATCH(B74,{0,"kWh","kW"},0),1,'[3]3.11 LoadForecast'!$J43*'[3]3.11 LoadForecast'!C87,'[3]3.11 LoadForecast'!$J73) -> 14147726.04 | I74: 0.001831045601 | J74: =H74*I74 -> 25905.13153
A75: General Service < 50 kW | B75: ='[3]0.2 Customer Classes'!$D$14 -> kWh | C75: 4068 | D75: 4716 | E75: =CHOOSE(MATCH(B75,{0,"kWh","kW"},0),1,'[3]3.11 LoadForecast'!$I44*'[3]3.11 LoadForecast'!B88,'[3]3.11 LoadForecast'!$I74) -> 4921868.048 | F75: ='[11]9. RTSR Rates to Forecast'!D28 -> 0.0016 | G75: 7874.988876 | H75: =CHOOSE(MATCH(B75,{0,"kWh","kW"},0),1,'[3]3.11 LoadForecast'!$J44*'[3]3.11 LoadForecast'!C88,'[3]3.11 LoadForecast'!$J74) -> 4991913.065 | I75: 0.001831044059 | J75: 9140.412763
A76: General Service > 50 to 4999 kW | B76: ='[3]0.2 Customer Classes'!$D$15 -> kW | C76: 4068 | D76: 4716 | E76: =CHOOSE(MATCH(B76,{0,"kWh","kW"},0),1,'[3]3.11 LoadForecast'!$I45*'[3]3.11 LoadForecast'!B89,'[3]3.11 LoadForecast'!$I75) -> 18152.24344 | F76: ='[11]9. RTSR Rates to Forecast'!D29 -> 0.5763 | G76: 10461.1379 | H76: =CHOOSE(MATCH(B76,{0,"kWh","kW"},0),1,'[3]3.11 LoadForecast'!$J45*'[3]3.11 LoadForecast'!C89,'[3]3.11 LoadForecast'!$J75) -> 17969.70589 | I76: 0.6595200263 | J76: 11851.3809
A77: Unmetered Scattered Load | B77: ='[3]0.2 Customer Classes'!$D$16 -> kWh | C77: 4068 | D77: 4716 | E77: =CHOOSE(MATCH(B77,{0,"kWh","kW"},0),1,'[3]3.11 LoadForecast'!$I46*'[3]3.11 LoadForecast'!B90,'[3]3.11 LoadForecast'!$I76) -> 3052.506 | F77: ='[11]9. RTSR Rates to Forecast'!D30 -> 0.0016 | G77: 4.8840096 | H77: =CHOOSE(MATCH(B77,{0,"kWh","kW"},0),1,'[3]3.11 LoadForecast'!$J46*'[3]3.11 LoadForecast'!C90,'[3]3.11 LoadForecast'!$J76) -> 3095.9474 | I77: 0.001831196384 | J77: 5.669287683
A78: Sentinel Lighting | B78: ='[3]0.2 Customer Classes'!$D$17 -> kW | C78: 4068 | D78: 4716 | E78: =CHOOSE(MATCH(B78,{0,"kWh","kW"},0),1,'[3]3.11 LoadForecast'!$I47*'[3]3.11 LoadForecast'!B91,'[3]3.11 LoadForecast'!$I77) -> 61 | F78: ='[11]9. RTSR Rates to Forecast'!D31 -> 0.4549 | G78: 27.7489 | H78: =CHOOSE(MATCH(B78,{0,"kWh","kW"},0),1,'[3]3.11 LoadForecast'!$J47*'[3]3.11 LoadForecast'!C91,'[3]3.11 LoadForecast'!$J77) -> 61 | I78: 0.5205233548 | J78: 31.75192465
A79: Street Lighting | B79: ='[3]0.2 Customer Classes'!$D$18 -> kW | C79: 4068 | D79: 4716 | E79: =CHOOSE(MATCH(B79,{0,"kWh","kW"},0),1,'[3]3.11 LoadForecast'!$I48*'[3]3.11 LoadForecast'!B92,'[3]3.11 LoadForecast'!$I78) -> 774 | F79: ='[11]9. RTSR Rates to Forecast'!D32 -> 0.4456 | G79: 344.8944 | H79: =CHOOSE(MATCH(B79,{0,"kWh","kW"},0),1,'[3]3.11 LoadForecast'!$J48*'[3]3.11 LoadForecast'!C92,'[3]3.11 LoadForecast'!$J78) -> 773.7 | I79: 0.5099424667 | J79: 394.5424865
A80: other | B80: ='[3]0.2 Customer Classes'!$D$19 -> 0 | C80: 4068 | D80: 4716 | E80: =CHOOSE(MATCH(B80,{0,"kWh","kW"},0),1,'[3]3.11 LoadForecast'!$I49*'[3]3.11 LoadForecast'!B93,'[3]3.11 LoadForecast'!$I79) -> 1 | F80: 0 | G80: 0 | H80: =CHOOSE(MATCH(B80,{0,"kWh","kW"},0),1,'[3]3.11 LoadForecast'!$J49*'[3]3.11 LoadForecast'!C93,'[3]3.11 LoadForecast'!$J79) -> 1 | I80: 0 | J80: 0
A81: 0 | B81: ='[3]0.2 Customer Classes'!$D$20 -> 0 | C81: 4068 | D81: 4716 | E81: =CHOOSE(MATCH(B81,{0,"kWh","kW"},0),1,'[3]3.11 LoadForecast'!$I50*'[3]3.11 LoadForecast'!B94,'[3]3.11 LoadForecast'!$I80) -> 1 | F81: 0 | G81: 0 | H81: =CHOOSE(MATCH(B81,{0,"kWh","kW"},0),1,'[3]3.11 LoadForecast'!$J50*'[3]3.11 LoadForecast'!C94,'[3]3.11 LoadForecast'!$J80) -> 1 | I81: 0 | J81: 0
A82: 0 | B82: ='[3]0.2 Customer Classes'!$D$21 -> 0 | C82: 4068 | D82: 4716 | E82: =CHOOSE(MATCH(B82,{0,"kWh","kW"},0),1,'[3]3.11 LoadForecast'!$I51*'[3]3.11 LoadForecast'!B95,'[3]3.11 LoadForecast'!$I81) -> 1 | F82: 0 | G82: 0 | H82: =CHOOSE(MATCH(B82,{0,"kWh","kW"},0),1,'[3]3.11 LoadForecast'!$J51*'[3]3.11 LoadForecast'!C95,'[3]3.11 LoadForecast'!$J81) -> 1 | I82: 0 | J82: 0
A83: TOTAL | E83: =SUM(E74:E82) -> 19115656.54 | G83: =SUM(G74:G82) -> 41388.44727 | H83: =SUM(H74:H82) -> 19161542.46 | J83: =SUM(J74:J82) -> 47328.88889
A85: Wholesale Market Service
A86: (volumes for the bridge and test year are automatically loss adjusted)
E87: ='[3]0.1 LDC Info'!$E$23 -> 2018 | H87: ='[3]0.1 LDC Info'!$E$25 -> 2019
A88: Customer | C88: Revenue | D88: Expense | F88: rate ($/kWh): | G88: 0.0052 | I88: rate ($/kWh): | J88: 0.0052
A89: Class Name | C89: USA # | D89: USA # | E89: Volume | G89: Amount | H89: Volume | J89: Amount
A90: =A15 -> Residential | B90: ='[3]0.2 Customer Classes'!$D$13 -> kWh | C90: 4062 | D90: 4708 | E90: =CHOOSE(MATCH(B90,{0,"kWh","kW"},0),1,'[3]3.11 LoadForecast'!$I43*'[3]3.11 LoadForecast'!B87,'[3]3.11 LoadForecast'!$I73) -> 14171745.74 | F90: 0.0036 | G90: =E90*F90 -> 51018.28466 | H90: =CHOOSE(MATCH(B90,{0,"kWh","kW"},0),1,'[3]3.11 LoadForecast'!$J43*'[3]3.11 LoadForecast'!C87,'[3]3.11 LoadForecast'!$J73) -> 14147726.04 | I90: 0.0034 | J90: =H90*I90 -> 48102.26853
A91: General Service < 50 kW | B91: ='[3]0.2 Customer Classes'!$D$13 -> kWh | C91: 4062 | D91: 4708 | E91: =CHOOSE(MATCH(B91,{0,"kWh","kW"},0),1,'[3]3.11 LoadForecast'!$I44*'[3]3.11 LoadForecast'!B88,'[3]3.11 LoadForecast'!$I74) -> 4921868.048 | F91: 0.0036 | G91: 17718.72497 | H91: =CHOOSE(MATCH(B91,{0,"kWh","kW"},0),1,'[3]3.11 LoadForecast'!$J44*'[3]3.11 LoadForecast'!C88,'[3]3.11 LoadForecast'!$J74) -> 4991913.065 | I91: 0.0034 | J91: 16972.50442
A92: General Service > 50 to 4999 kW | B92: ='[3]0.2 Customer Classes'!$D$13 -> kWh | C92: 4062 | D92: 4708 | E92: =CHOOSE(MATCH(B92,{0,"kWh","kW"},0),1,'[3]3.11 LoadForecast'!$I45*'[3]3.11 LoadForecast'!B89,'[3]3.11 LoadForecast'!$I75) -> 7221084.692 | F92: 0.0036 | G92: 25995.90489 | H92: =CHOOSE(MATCH(B92,{0,"kWh","kW"},0),1,'[3]3.11 LoadForecast'!$J45*'[3]3.11 LoadForecast'!C89,'[3]3.11 LoadForecast'!$J75) -> 7323850.755 | I92: 0.0034 | J92: 24901.09257
A93: Unmetered Scattered Load | B93: ='[3]0.2 Customer Classes'!$D$13 -> kWh | C93: 4062 | D93: 4708 | E93: =CHOOSE(MATCH(B93,{0,"kWh","kW"},0),1,'[3]3.11 LoadForecast'!$I46*'[3]3.11 LoadForecast'!B90,'[3]3.11 LoadForecast'!$I76) -> 3052.506 | F93: 0.0036 | G93: 10.9890216 | H93: =CHOOSE(MATCH(B93,{0,"kWh","kW"},0),1,'[3]3.11 LoadForecast'!$J46*'[3]3.11 LoadForecast'!C90,'[3]3.11 LoadForecast'!$J76) -> 3095.9474 | I93: 0.0034 | J93: 10.52622116
A94: Sentinel Lighting | B94: ='[3]0.2 Customer Classes'!$D$13 -> kWh | C94: 4062 | D94: 4708 | E94: =CHOOSE(MATCH(B94,{0,"kWh","kW"},0),1,'[3]3.11 LoadForecast'!$I47*'[3]3.11 LoadForecast'!B91,'[3]3.11 LoadForecast'!$I77) -> 21438.2605 | F94: 0.0036 | G94: 77.1777378 | H94: =CHOOSE(MATCH(B94,{0,"kWh","kW"},0),1,'[3]3.11 LoadForecast'!$J47*'[3]3.11 LoadForecast'!C91,'[3]3.11 LoadForecast'!$J77) -> 21743.35672 | I94: 0.0034 | J94: 73.92741285
A95: Street Lighting | B95: ='[3]0.2 Customer Classes'!$D$13 -> kWh | C95: 4062 | D95: 4708 | E95: =CHOOSE(MATCH(B95,{0,"kWh","kW"},0),1,'[3]3.11 LoadForecast'!$I48*'[3]3.11 LoadForecast'!B92,'[3]3.11 LoadForecast'!$I78) -> 299727.3796 | F95: 0.0036 | G95: 1079.018567 | H95: =CHOOSE(MATCH(B95,{0,"kWh","kW"},0),1,'[3]3.11 LoadForecast'!$J48*'[3]3.11 LoadForecast'!C92,'[3]3.11 LoadForecast'!$J78) -> 303992.9165 | I95: 0.0034 | J95: 1033.575916
A96: other | B96: ='[3]0.2 Customer Classes'!$D$19 -> 0 | C96: 4062 | D96: 4708 | E96: =CHOOSE(MATCH(B96,{0,"kWh","kW"},0),1,'[3]3.11 LoadForecast'!$I49*'[3]3.11 LoadForecast'!B93,'[3]3.11 LoadForecast'!$I79) -> 1 | F96: 0.0036 | G96: 0.0036 | H96: =CHOOSE(MATCH(B96,{0,"kWh","kW"},0),1,'[3]3.11 LoadForecast'!$J49*'[3]3.11 LoadForecast'!C93,'[3]3.11 LoadForecast'!$J79) -> 1 | I96: 0.0034 | J96: 0.0034
A97: 0 | B97: ='[3]0.2 Customer Classes'!$D$20 -> 0 | C97: 4062 | D97: 4708 | E97: =CHOOSE(MATCH(B97,{0,"kWh","kW"},0),1,'[3]3.11 LoadForecast'!$I50*'[3]3.11 LoadForecast'!B94,'[3]3.11 LoadForecast'!$I80) -> 1 | F97: 0.0036 | G97: 0.0036 | H97: =CHOOSE(MATCH(B97,{0,"kWh","kW"},0),1,'[3]3.11 LoadForecast'!$J50*'[3]3.11 LoadForecast'!C94,'[3]3.11 LoadForecast'!$J80) -> 1 | I97: 0.0034 | J97: 0.0034
A98: 0 | B98: ='[3]0.2 Customer Classes'!$D$21 -> 0 | C98: 4062 | D98: 4708 | E98: =CHOOSE(MATCH(B98,{0,"kWh","kW"},0),1,'[3]3.11 LoadForecast'!$I51*'[3]3.11 LoadForecast'!B95,'[3]3.11 LoadForecast'!$I81) -> 1 | F98: 0.0036 | G98: 0.0036 | H98: =CHOOSE(MATCH(B98,{0,"kWh","kW"},0),1,'[3]3.11 LoadForecast'!$J51*'[3]3.11 LoadForecast'!C95,'[3]3.11 LoadForecast'!$J81) -> 1 | I98: 0.0034 | J98: 0.0034
A99: TOTAL | E99: =SUM(E90:E98) -> 26638919.63 | G99: =SUM(G90:G98) -> 95900.11065 | H99: =SUM(H90:H98) -> 26792325.08 | J99: =SUM(J90:J98) -> 91093.90527
A101: Rural Rate Protection
A102: (volumes for the bridge and test year are automatically loss adjusted)
E103: ='[3]0.1 LDC Info'!$E$23 -> 2018 | H103: ='[3]0.1 LDC Info'!$E$25 -> 2019
A104: Customer | C104: Revenue | D104: Expense | F104: rate ($/kWh): | I104: rate ($/kWh):
A105: Class Name | C105: USA # | D105: USA # | E105: Volume | G105: Amount | H105: Volume | J105: Amount
A106: =A15 -> Residential | B106: ='[3]0.2 Customer Classes'!$D$13 -> kWh | C106: 4062 | D106: 4730 | E106: =CHOOSE(MATCH(B106,{0,"kWh","kW"},0),1,'[3]3.11 LoadForecast'!$I43*'[3]3.11 LoadForecast'!B87,'[3]3.11 LoadForecast'!$I73) -> 14171745.74 | F106: 0.0013 | G106: =E106*F106 -> 18423.26946 | H106: =CHOOSE(MATCH(B106,{0,"kWh","kW"},0),1,'[3]3.11 LoadForecast'!$J43*'[3]3.11 LoadForecast'!C87,'[3]3.11 LoadForecast'!$J73) -> 14147726.04 | I106: 0.0005 | J106: =H106*I106 -> 7073.863019
A107: General Service < 50 kW | B107: ='[3]0.2 Customer Classes'!$D$14 -> kWh | C107: 4062 | D107: 4730 | E107: =CHOOSE(MATCH(B107,{0,"kWh","kW"},0),1,'[3]3.11 LoadForecast'!$I44*'[3]3.11 LoadForecast'!B88,'[3]3.11 LoadForecast'!$I74) -> 4921868.048 | F107: 0.0013 | G107: 6398.428462 | H107: =CHOOSE(MATCH(B107,{0,"kWh","kW"},0),1,'[3]3.11 LoadForecast'!$J44*'[3]3.11 LoadForecast'!C88,'[3]3.11 LoadForecast'!$J74) -> 4991913.065 | I107: 0.0005 | J107: 2495.956533
A108: General Service > 50 to 4999 kW | B108: ='[3]0.2 Customer Classes'!$D$14 -> kWh | C108: 4062 | D108: 4730 | E108: =CHOOSE(MATCH(B108,{0,"kWh","kW"},0),1,'[3]3.11 LoadForecast'!$I45*'[3]3.11 LoadForecast'!B89,'[3]3.11 LoadForecast'!$I75) -> 7221084.692 | F108: 0.0013 | G108: 9387.410099 | H108: =CHOOSE(MATCH(B108,{0,"kWh","kW"},0),1,'[3]3.11 LoadForecast'!$J45*'[3]3.11 LoadForecast'!C89,'[3]3.11 LoadForecast'!$J75) -> 7323850.755 | I108: 0.0005 | J108: 3661.925378
A109: Unmetered Scattered Load | B109: ='[3]0.2 Customer Classes'!$D$14 -> kWh | C109: 4062 | D109: 4730 | E109: =CHOOSE(MATCH(B109,{0,"kWh","kW"},0),1,'[3]3.11 LoadForecast'!$I46*'[3]3.11 LoadForecast'!B90,'[3]3.11 LoadForecast'!$I76) -> 3052.506 | F109: 0.0013 | G109: 3.9682578 | H109: =CHOOSE(MATCH(B109,{0,"kWh","kW"},0),1,'[3]3.11 LoadForecast'!$J46*'[3]3.11 LoadForecast'!C90,'[3]3.11 LoadForecast'!$J76) -> 3095.9474 | I109: 0.0005 | J109: 1.5479737
A110: Sentinel Lighting | B110: ='[3]0.2 Customer Classes'!$D$14 -> kWh | C110: 4062 | D110: 4730 | E110: =CHOOSE(MATCH(B110,{0,"kWh","kW"},0),1,'[3]3.11 LoadForecast'!$I47*'[3]3.11 LoadForecast'!B91,'[3]3.11 LoadForecast'!$I77) -> 21438.2605 | F110: 0.0013 | G110: 27.86973865 | H110: =CHOOSE(MATCH(B110,{0,"kWh","kW"},0),1,'[3]3.11 LoadForecast'!$J47*'[3]3.11 LoadForecast'!C91,'[3]3.11 LoadForecast'!$J77) -> 21743.35672 | I110: 0.0005 | J110: 10.87167836
A111: Street Lighting | B111: ='[3]0.2 Customer Classes'!$D$14 -> kWh | C111: 4062 | D111: 4730 | E111: =CHOOSE(MATCH(B111,{0,"kWh","kW"},0),1,'[3]3.11 LoadForecast'!$I48*'[3]3.11 LoadForecast'!B92,'[3]3.11 LoadForecast'!$I78) -> 299727.3796 | F111: 0.0013 | G111: 389.6455935 | H111: =CHOOSE(MATCH(B111,{0,"kWh","kW"},0),1,'[3]3.11 LoadForecast'!$J48*'[3]3.11 LoadForecast'!C92,'[3]3.11 LoadForecast'!$J78) -> 303992.9165 | I111: 0.0005 | J111: 151.9964582
A112: other | B112: ='[3]0.2 Customer Classes'!$D$19 -> 0 | C112: 4062 | D112: 4730 | E112: =CHOOSE(MATCH(B112,{0,"kWh","kW"},0),1,'[3]3.11 LoadForecast'!$I49*'[3]3.11 LoadForecast'!B93,'[3]3.11 LoadForecast'!$I79) -> 1 | F112: 0.0013 | G112: 0.0013 | H112: =CHOOSE(MATCH(B112,{0,"kWh","kW"},0),1,'[3]3.11 LoadForecast'!$J49*'[3]3.11 LoadForecast'!C93,'[3]3.11 LoadForecast'!$J79) -> 1 | I112: 0.0005 | J112: 0.0005
A113: 0 | B113: ='[3]0.2 Customer Classes'!$D$20 -> 0 | C113: 4062 | D113: 4730 | E113: =CHOOSE(MATCH(B113,{0,"kWh","kW"},0),1,'[3]3.11 LoadForecast'!$I50*'[3]3.11 LoadForecast'!B94,'[3]3.11 LoadForecast'!$I80) -> 1 | F113: 0.0013 | G113: 0.0013 | H113: =CHOOSE(MATCH(B113,{0,"kWh","kW"},0),1,'[3]3.11 LoadForecast'!$J50*'[3]3.11 LoadForecast'!C94,'[3]3.11 LoadForecast'!$J80) -> 1 | I113: 0.0005 | J113: 0.0005
A114: 0 | B114: ='[3]0.2 Customer Classes'!$D$21 -> 0 | C114: 4062 | D114: 4730 | E114: =CHOOSE(MATCH(B114,{0,"kWh","kW"},0),1,'[3]3.11 LoadForecast'!$I51*'[3]3.11 LoadForecast'!B95,'[3]3.11 LoadForecast'!$I81) -> 1 | F114: 0.0013 | G114: 0.0013 | H114: =CHOOSE(MATCH(B114,{0,"kWh","kW"},0),1,'[3]3.11 LoadForecast'!$J51*'[3]3.11 LoadForecast'!C95,'[3]3.11 LoadForecast'!$J81) -> 1 | I114: 0.0005 | J114: 0.0005
A115: TOTAL | E115: =SUM(E106:E114) -> 26638919.63 | G115: =SUM(G106:G114) -> 34630.59551 | H115: =SUM(H106:H114) -> 26792325.08 | J115: =SUM(J106:J114) -> 13396.16254
A117: Smart Meter Entity Charge
A118: (per customer)
E119: ='[3]0.1 LDC Info'!$E$23 -> 2018 | H119: ='[3]0.1 LDC Info'!$E$25 -> 2019
A120: Customer | C120: Revenue | D120: Expense | F120: rate ($/kWh): | I120: rate ($/kWh):
A121: Class Name | C121: USA # | D121: USA # | E121: Volume | G121: Amount | H121: Volume | J121: Amount
A122: =A15 -> Residential | B122: Cust | E122: ='[3]3.11 LoadForecast'!I14 -> 1043.488368 | F122: 0 | G122: =E122*F122 -> 0 | H122: ='[3]3.11 LoadForecast'!J14 -> 1047 | I122: 0.57 | J122: =H122*I122*12 -> 7161.48
A123: =A16 -> General Service < 50 kW | B123: Cust | E123: ='[3]3.11 LoadForecast'!I15 -> 150.2199753 | F123: 0 | G123: =E123*F123 -> 0 | H123: ='[3]3.11 LoadForecast'!J15 -> 149 | I123: 0.57 | J123: =H123*I123*12 -> 1019.16
A124: =A17 -> General Service > 50 to 4999 kW | B124: Cust | E124: 0 | F124: 0 | G124: =E124*F124 -> 0 | H124: 0 | I124: 0.57 | J124: =H124*I124*12 -> 0
A125: TOTAL | E125: =SUM(E122:E124) -> 1193.708343 | G125: =SUM(G122:G124) -> 0 | H125: =SUM(H122:H124) -> 1196 | J125: =SUM(J122:J124) -> 8180.64
A127: OESP
A128: (volumes for the bridge and test year are automatically loss adjusted)
E129: ='[3]0.1 LDC Info'!$E$23 -> 2018 | H129: ='[3]0.1 LDC Info'!$E$25 -> 2019
A130: Customer | C130: Revenue | D130: Expense | F130: rate ($/kWh): | I130: rate ($/kWh):
A131: Class Name | C131: USA # | D131: USA # | E131: Volume | G131: Amount | H131: Volume | J131: Amount
A132: =A42 -> Residential | B132: ='[3]0.2 Customer Classes'!$D$13 -> kWh | C132: 4062 | D132: 4730 | E132: =CHOOSE(MATCH(B132,{0,"kWh","kW"},0),1,'[3]3.11 LoadForecast'!$I43*'[3]3.11 LoadForecast'!B87,'[3]3.11 LoadForecast'!$I73) -> 14171745.74 | F132: 0 | G132: =E132*F132 -> 0 | H132: =CHOOSE(MATCH(B132,{0,"kWh","kW"},0),1,'[3]3.11 LoadForecast'!$J43*'[3]3.11 LoadForecast'!C87,'[3]3.11 LoadForecast'!$J73) -> 14147726.04 | I132: 0 | J132: =H132*I132 -> 0
A133: =A43 -> General Service < 50 kW | B133: ='[3]0.2 Customer Classes'!$D$14 -> kWh | C133: 4062 | D133: 4730 | E133: =CHOOSE(MATCH(B133,{0,"kWh","kW"},0),1,'[3]3.11 LoadForecast'!$I44*'[3]3.11 LoadForecast'!B88,'[3]3.11 LoadForecast'!$I74) -> 4921868.048 | F133: 0 | G133: =E133*F133 -> 0 | H133: =CHOOSE(MATCH(B133,{0,"kWh","kW"},0),1,'[3]3.11 LoadForecast'!$J44*'[3]3.11 LoadForecast'!C88,'[3]3.11 LoadForecast'!$J74) -> 4991913.065 | I133: 0 | J133: =H133*I133 -> 0
A134: TOTAL | E134: =SUM(E132:E133) -> 19093613.79 | G134: =SUM(G132:G133) -> 0 | H134: =SUM(H132:H133) -> 19139639.1 | J134: =SUM(J132:J133) -> 0
A137: Low Voltage Charges - Historical and Proposed LV Charges
E139: ='[3]0.1 LDC Info'!$E$27 -> 2012 | F139: ='[3]0.1 LDC Info'!$E$27+1 -> 2013 | G139: ='[3]0.1 LDC Info'!$E$27+2 -> 2014 | H139: ='[3]0.1 LDC Info'!$E$27+3 -> 2015 | I139: ='[3]0.1 LDC Info'!$E$27+4 -> 2016 | J139: 2017 | K139: 2018 | L139: AVG
A141: ='[3]1.2 TB Historical Balances'!B313 -> 4075-Billed - LV | E141: -30387.55 | F141: -17153.5 | G141: -19856.55 | H141: -17265.37 | I141: -14687.88 | J141: -14621.87 | L141: =AVERAGE(G141:J141) -> -16607.9175
A142: ='[3]1.2 TB Historical Balances'!B404 -> 4750-Charges - LV | E142: 15490.89 | F142: 39969.43 | G142: 71247.38 | H142: 74594.78 | I142: 70967.4 | J142: 59187.4 | K142: 38844 | L142: =AVERAGE(K142) -> 38844
A143: 1551 LV Charges | E143: ='[3]1.2 TB Historical Balances'!J84 -> -31254.43 | F143: ='[3]1.2 TB Historical Balances'!M84 -> 7220.02 | G143: ='[3]1.2 TB Historical Balances'!P84 -> 39576.28 | H143: ='[3]1.2 TB Historical Balances'!S84 -> 110948.96 | I143: ='[3]1.2 TB Historical Balances'!V84 -> 153699.85 | J143: ='[3]1.2 TB Historical Balances'!Y84 -> 200139.14 | K143: ='[3]1.2 TB Historical Balances'!Z84 -> 0
A144: Low Voltage Charges - Allocation of LV Charges based on Transmission Connection Revenues
A145: (volumes are not loss adjusted)
B147: ALLOCATON BASED ON TRANSMISSION-CONNECTION REVENUE
A148: Customer Class Name | C148: RTSR Rate | D148: Uplifted Volumes | F148: Revenue | G148: % Alloc
A149: =A15 -> Residential | B149: ='[3]0.2 Customer Classes'!$D$13 -> kWh | C149: =I74 -> 0.001831045601 | D149: =H58 -> 14147726.04 | F149: =C149*D149 -> 25905.13153 | G149: =F149/$F$158 -> 0.5473429048
A150: General Service < 50 kW | B150: ='[3]0.2 Customer Classes'!$D$14 -> kWh | C150: 0.001831044059 | D150: 4991913.065 | F150: 9140.412763 | G150: 0.1931254457
A151: General Service > 50 to 4999 kW | B151: ='[3]0.2 Customer Classes'!$D$15 -> kW | C151: 0.6595200263 | D151: 17969.70589 | F151: 11851.3809 | G151: 0.2504047988
A152: Unmetered Scattered Load | B152: ='[3]0.2 Customer Classes'!$D$16 -> kWh | C152: 0.001831196384 | D152: =H61 -> 3095.9474 | F152: 5.669287683 | G152: 0.0001197849308
A153: Sentinel Lighting | B153: ='[3]0.2 Customer Classes'!$D$17 -> kW | C153: 0.5205233548 | D153: 61 | F153: 31.75192465 | G153: 0.0006708783027
A154: Street Lighting | B154: ='[3]0.2 Customer Classes'!$D$18 -> kW | C154: 0.5099424667 | D154: 773.7 | F154: 394.5424865 | G154: 0.008336187384
A155: other | B155: ='[3]0.2 Customer Classes'!$D$19 -> 0 | C155: 0 | D155: 1 | F155: 0 | G155: 0
A156: 0 | B156: ='[3]0.2 Customer Classes'!$D$19 -> 0 | C156: 0 | D156: 1 | F156: 0 | G156: 0
A157: =A22 -> 0 | B157: ='[3]0.2 Customer Classes'!$D$19 -> 0 | C157: 0 | D157: 1 | F157: 0 | G157: 0
A158: TOTAL | D158: =SUM(D149:E157) -> 19161542.46 | F158: =SUM(F149:F157) -> 47328.88889 | G158: =SUM(G149:G157) -> 1
A160: Low Voltage Charges Rate Rider Calculations
A161: (volumes are not loss adjusted)
B163: PROPOSED LOW VOLTAGE CHARGES & RATES
A164: Customer Class Name | B164: % Allocation | E164: Charges | F164: Not Uplifted Volumes | G164: Rate | H164: per
A165: =A15 -> Residential | B165: =G149 -> 0.5473429048 | E165: =$E$174*B165 -> 21260.98779 | F165: =CHOOSE(MATCH(B106,{0,"kWh","kW"},0),1,'[3]3.11 LoadForecast'!$J43,'[3]3.11 LoadForecast'!$J73) -> 13215736.06 | G165: =ROUND(E165/F165,4) -> 0.0016 | H165: ='[3]0.2 Customer Classes'!$D13 -> kWh
A166: General Service < 50 kW | B166: 0.1931254457 | E166: 7501.764814 | F166: =CHOOSE(MATCH(B107,{0,"kWh","kW"},0),1,'[3]3.11 LoadForecast'!$J44,'[3]3.11 LoadForecast'!$J74) -> 4663067.786 | G166: 0.0016 | H166: ='[3]0.2 Customer Classes'!$D14 -> kWh
A167: General Service > 50 to 4999 kW | B167: 0.2504047988 | E167: 9726.724006 | F167: =CHOOSE(MATCH(H167,{0,"kWh","kW"},0),1,'[3]3.11 LoadForecast'!$J45,'[3]3.11 LoadForecast'!$J75) -> 17969.70589 | G167: =ROUND(E167/F167,4) -> 0.5413 | H167: ='[3]0.2 Customer Classes'!$D15 -> kW
A168: Unmetered Scattered Load | B168: 0.0001197849308 | E168: =$E$174*B168 -> 4.652925854 | F168: =CHOOSE(MATCH(H168,{0,"kWh","kW"},0),1,'[3]3.11 LoadForecast'!$J46,'[3]3.11 LoadForecast'!$J76) -> 2892 | G168: 0.0016 | H168: ='[3]0.2 Customer Classes'!$D16 -> kWh
A169: Sentinel Lighting | B169: 0.0006708783027 | E169: 26.05959679 | F169: =CHOOSE(MATCH(H169,{0,"kWh","kW"},0),1,'[3]3.11 LoadForecast'!$J47,'[3]3.11 LoadForecast'!$J77) -> 61 | G169: 0.4272 | H169: ='[3]0.2 Customer Classes'!$D17 -> kW
A170: Street Lighting | B170: 0.008336187384 | E170: 323.8108627 | F170: =CHOOSE(MATCH(H170,{0,"kWh","kW"},0),1,'[3]3.11 LoadForecast'!$J48,'[3]3.11 LoadForecast'!$J78) -> 773.7 | G170: 0.4185 | H170: ='[3]0.2 Customer Classes'!$D18 -> kW
A171: other | B171: 0 | E171: 0 | F171: =CHOOSE(MATCH(B112,{0,"kWh","kW"},0),1,'[3]3.11 LoadForecast'!$J49,'[3]3.11 LoadForecast'!$J79) -> 1 | G171: 0 | H171: ='[3]0.2 Customer Classes'!$D19 -> 0
A172: 0 | B172: 0 | E172: 0 | F172: =CHOOSE(MATCH(B113,{0,"kWh","kW"},0),1,'[3]3.11 LoadForecast'!$J50,'[3]3.11 LoadForecast'!$J80) -> 1 | G172: 0 | H172: ='[3]0.2 Customer Classes'!$D20 -> 0
A173: 0 | B173: 0 | E173: 0 | F173: =CHOOSE(MATCH(B114,{0,"kWh","kW"},0),1,'[3]3.11 LoadForecast'!$J51,'[3]3.11 LoadForecast'!$J81) -> 1 | G173: 0 | H173: ='[3]0.2 Customer Classes'!$D21 -> 0
A174: TOTAL | B174: =SUM(B165:D173) -> 1 | E174: =L142 -> 38844 | F174: =SUM(F165:F173) -> 17900503.26
A176: Low Voltage Charges to be added to power supply expense for bridge and test year.
A177: (volumes are not loss adjusted)
A179: Customer | C179: Revenue | D179: Expense | E179: 2018 | H179: 2019
A180: Class Name | C180: USA # | D180: USA # | E180: Volume | F180: Rate | G180: Amount | H180: Volume | I180: Rate | J180: Amount
A181: =A15 -> Residential | B181: ='[3]0.2 Customer Classes'!$D$13 -> kWh | C181: 4075 | D181: 4750 | E181: =CHOOSE(MATCH(B149,{0,"kWh","kW"},0),1,'[3]3.11 LoadForecast'!$I43,'[3]3.11 LoadForecast'!$I73) -> 13426571.05 | F181: 0.0006 | G181: =E181*F181 -> 8055.942628 | H181: =F165 -> 13215736.06 | I181: 0.0016 | J181: =H181*I181 -> 21145.1777
A182: General Service < 50 kW | B182: ='[3]0.2 Customer Classes'!$D$14 -> kWh | C182: 4075 | D182: 4750 | E182: =CHOOSE(MATCH(B150,{0,"kWh","kW"},0),1,'[3]3.11 LoadForecast'!$I44,'[3]3.11 LoadForecast'!$I74) -> 4663067.786 | F182: 0.0006 | G182: 2797.840671 | H182: 4663067.786 | I182: 0.0016 | J182: 7460.908457
A183: General Service > 50 to 4999 kW | B183: ='[3]0.2 Customer Classes'!$D$15 -> kW | C183: 4075 | D183: 4750 | E183: =CHOOSE(MATCH(B151,{0,"kWh","kW"},0),1,'[3]3.11 LoadForecast'!$I45,'[3]3.11 LoadForecast'!$I75) -> 18152.24344 | F183: 0.2256 | G183: 4095.146121 | H183: 17969.70589 | I183: 0.5413 | J183: 9727.001799
A184: Unmetered Scattered Load | B184: ='[3]0.2 Customer Classes'!$D$16 -> kWh | C184: 4075 | D184: 4750 | E184: =CHOOSE(MATCH(B152,{0,"kWh","kW"},0),1,'[3]3.11 LoadForecast'!$I46,'[3]3.11 LoadForecast'!$I76) -> 2892 | F184: 0.0006 | G184: 1.7352 | H184: 2892 | I184: 0.0016 | J184: 4.6272
A185: Sentinel Lighting | B185: ='[3]0.2 Customer Classes'!$D$17 -> kW | C185: 4075 | D185: 4750 | E185: =CHOOSE(MATCH(B153,{0,"kWh","kW"},0),1,'[3]3.11 LoadForecast'!$I47,'[3]3.11 LoadForecast'!$I77) -> 61 | F185: 0.2261 | G185: 13.7921 | H185: 61 | I185: 0.4272 | J185: 26.0592
A186: Street Lighting | B186: ='[3]0.2 Customer Classes'!$D$18 -> kW | C186: 4075 | D186: 4750 | E186: =CHOOSE(MATCH(B154,{0,"kWh","kW"},0),1,'[3]3.11 LoadForecast'!$I48,'[3]3.11 LoadForecast'!$I78) -> 774 | F186: 0.2173 | G186: 168.1902 | H186: 773.7 | I186: 0.4185 | J186: 323.79345
A187: other | B187: ='[3]0.2 Customer Classes'!$D$19 -> 0 | C187: 4075 | D187: 4750 | E187: =CHOOSE(MATCH(B155,{0,"kWh","kW"},0),1,'[3]3.11 LoadForecast'!$I49,'[3]3.11 LoadForecast'!$I79) -> 1 | F187: 0 | G187: 0 | H187: 1 | I187: 0 | J187: 0
A188: 0 | B188: ='[3]0.2 Customer Classes'!$D$20 -> 0 | C188: 4075 | D188: 4750 | E188: =CHOOSE(MATCH(B156,{0,"kWh","kW"},0),1,'[3]3.11 LoadForecast'!$I50,'[3]3.11 LoadForecast'!$I80) -> 1 | F188: 0 | G188: 0 | H188: 1 | I188: 0 | J188: 0
A189: 0 | B189: ='[3]0.2 Customer Classes'!$D$21 -> 0 | C189: 4075 | D189: 4750 | E189: =CHOOSE(MATCH(B157,{0,"kWh","kW"},0),1,'[3]3.11 LoadForecast'!$I51,'[3]3.11 LoadForecast'!$I81) -> 1 | F189: 0 | G189: 0 | H189: 1 | I189: 0 | J189: 0
A190: TOTAL | C190: 0 | D190: 0 | E190: =SUM(E181:E189) -> 18111521.08 | G190: =SUM(G181:G189) -> 15132.64692 | H190: =SUM(H181:H189) -> 17900503.26 | J190: =SUM(J181:J189) -> 38687.56781
A193: Projected Power Supply Expense | G193: =G51+G67+G83+G99+G115+G125+G190 -> 2522950.288 | J193: =J51+J67+J83+J99+J115+J125+J134+J190 -> 2571771.927
